Cogmind - Beta 16.1 @@@ ROGUE MODE // 2026.03.02 @ 22:47:28 Player: Kaisercar Result: Self-destructed Performance ------------- Evolutions (9) 4500 Regions Visited (21) 4200 Robots Destroyed (310) 1550 Value Destroyed (15126) 15126 Prototype IDs (44) 880 Alien Tech Used (0) 0 Bonus (14080) 14080 TOTAL SCORE: 40336 Bonus ------- High Alert Combat Kills 2634 Follower Combat Kills 2694 Entered Garrisons 200 Entered DSFs 1000 Aligned with FarCom 300 Acquired ECA 300 Met Warlord at Base 500 MAIN.C Attacked Warlord 500 Warlord Defense Kills 2042 Built Enhanced Grunts 300 A7 Reached Mainframe 300 Met R17 at Cetus 500 Met R17 at Research 2000 Met Warlord at Research 2000 Friendly Fire -1190 Cogmind --------- Core Integrity 881/1600 Matter 271/550 Energy 100/100 System Corruption 38% Temperature Cool (98) Movement Walking (190) Ox1 Location -1/Access Parts ------- > --- POWER (2) -------- (None) > --- PROPULSION (6) --- Centrium Leg (fused) > --- UTILITY (11) ----- Advanced Heat Sink Advanced Cooling System High-capacity Storage Unit Matter Compressor Advanced Terrain Scan Processor Experimental Targeting Computer Experimental Core Analyzer Advanced Hacking Suite Improved System Shield > --- WEAPON (6) ------- Heavy Laser > --- INVENTORY (20) --- Particle Reactor Micro Antimatter Reactor Light Quantum Reactor Advanced Heat Sink Advanced Heat Sink Advanced Signal Interpreter Improved Point Defense System Improved Point Defense System HERF Cannon Advanced Remote Datajack Improved Plasma Cutter Peak State ------------ > --- POWER ------------ Particle Reactor Quantum Reactor > --- PROPULSION ------- Advanced Heavy Siege Treads Advanced Heavy Siege Treads Armored Huge Wheel > --- UTILITY ---------- Advanced Heat Sink Advanced Heat Sink High-capacity Storage Unit Experimental Targeting Computer Experimental Core Analyzer Armor Integrity Analyzer Centrium Light Armor Plating Centrium Light Armor Plating Improved Point Defense System Improved Point Defense System Advanced Hacking Suite > --- WEAPON ----------- Phase Gun Quantum Rifle Improved Matter Neutralizer Coil Gun Heavy Machine Gun Railgun > --- INVENTORY -------- Particle Reactor Advanced Heavy Siege Treads Advanced Heavy Siege Treads Centrium Wheel Matter Compressor Advanced Terrain Scan Processor Improved Transmission Jammer Advanced Hacking Suite Advanced Hacking Suite Improved System Shield Improved Corruption Screen Phase Gun HERF Cannon Nova Cannon Helical Railgun Micro-nuke Launcher Fusion Bomb Launcher Improved Plasma Cutter [Rating: 185] Favorites ----------- Power Quantum Reactor Engine Deuterium Engine Power Core Fission Core Reactor Quantum Reactor Propulsion Flexi-carbon Leg Treads Light Treads Leg Flexi-carbon Leg Wheel Armored Huge Wheel Utility High-capacity Storage Unit Device Advanced Heat Sink Storage High-capacity Storage Unit Processor Experimental Core Analyzer Hackware Advanced Hacking Suite Protection Centrium Light Armor Plating Weapon Advanced KE Penetrator Energy Gun Spread Laser Energy Cannon Nova Cannon Ballistic Gun Advanced KE Penetrator Ballistic Cannon Magnetic Acceleration Cannon Launcher Micro-nuke Launcher Special Weapon Plasma Cutter Impact Weapon Heavy Flail Build | -11 -10 -10 -10 -9 -8 -8 -7 -7 -6 -6 -6 -6 -5 -5 -5 -4 -4 -4 -3 -2 -1 ------- Run | Yrd Mat Min Exi Min Mat Gar Fac DSF Fac Ext Cet Arc Fac Upp War Pro Fac DSF Res Res Acc Slots Evolved 18 | . . . . . 4 . 2 . 2 . . . 2 . . . 2 . 2 2 2 Power 1 | . . . . . . . . . . . . . . . . . . . . 1 . Propulsion 4 | . . . . . 2 . 1 . . . . . . . . . . . 1 . . Utility 9 | . . . . . 2 . 1 . 2 . . . . . . . 1 . 1 1 1 Weapon 4 | . . . . . . . . . . . . . 2 . . . 1 . . . 1 Parts Attached 250 | 7 7 7 2 3 12 12 3 13 10 32 10 2 9 2 10 6 1 5 28 21 48 Power 27 | 1 . 1 1 . 2 . . 1 . 8 1 . . . . 1 . . 1 5 5 Engine 11 | 1 . 1 1 . 2 . . 1 . 5 . . . . . . . . . . . Core 4 | . . . . . . . . . . 3 . . . . . . . . . . 1 Reactor 12 | . . . . . . . . . . . 1 . . . . 1 . . 1 5 4 Propulsion 73 | 2 2 2 . . 6 9 . 3 2 16 . . 3 1 3 . . 2 9 2 11 Treads 16 | 2 1 1 . . . . . . 1 . . . . . . . . 2 5 2 2 Leg 50 | . . . . . 6 9 . 3 . 15 . . 3 1 3 . . . 1 . 9 Wheel 7 | . 1 1 . . . . . . 1 1 . . . . . . . . 3 . . Hover . | . . . . . . . . . . . . . . . . . . . . . . Flight . | . . . . . . . . . . . . . . . . . . . . . . Utility 81 | 2 2 2 . 2 3 . 2 5 3 5 6 1 4 1 7 1 . 1 7 8 19 Device 32 | 1 . . . 2 1 . . 2 1 3 2 . . 1 2 . . 1 4 3 9 Storage 5 | 1 2 . . . . . 1 . . . . . . . . . . . . . 1 Processor 14 | . . . . . 1 . . . 1 1 . . 2 . 4 . . . . 3 2 Hackware 8 | . . . . . . . . . . . . 1 2 . . 1 . . . 1 3 Protection 22 | . . 2 . . 1 . 1 3 1 1 4 . . . 1 . . . 3 1 4 Artifact . | . . . . . . . . . . . . . . . . . . . . . . Weapon 69 | 2 3 2 1 1 1 3 1 4 5 3 3 1 2 . . 4 1 2 11 6 13 Energy Gun 17 | . 2 1 . . . . . . . . 2 . . . . . . . 3 2 7 Energy Cannon 13 | . . . 1 . 1 1 . 2 1 1 . . . . . 1 . . 4 . 1 Ballistic Gun 16 | 2 . . . . . . . . . . 1 1 1 . . 2 1 2 3 3 . Ballistic Cannon 10 | . . . . 1 . . 1 2 4 1 . . . . . . . . . . 1 Launcher 11 | . 1 1 . . . 1 . . . . . . 1 . . 1 . . 1 1 4 Special Weapon 1 | . . . . . . . . . . 1 . . . . . . . . . . . Impact Weapon 1 | . . . . . . 1 . . . . . . . . . . . . . . . Slashing Weapon . | . . . . . . . . . . . . . . . . . . . . . . Piercing Weapon . | . . . . . . . . . . . . . . . . . . . . . . Special Melee Weapon . | . . . . . . . . . . . . . . . . . . . . . . Unidentified Prototypes 18 | . . . . . . . . . 2 . 3 . 2 . 5 1 . . 3 . 2 Corrupted Parts 4 | . . . . . . . . 2 . . . . . . . . . . . . 2 System Corruption 21 | . . . . . . . . 11 . . . . . . . . . . . . 10 Parts Lost 102 | . . 4 . . 2 3 . 11 1 14 . . . . . 3 . . 19 1 44 Power 11 | . . 1 . . . . . 1 . 2 . . . . . 1 . . 1 . 5 Propulsion 30 | . . . . . 1 3 . 5 1 6 . . . . . 1 . . 3 . 10 Utility 28 | . . 2 . . . . . 2 . 5 . . . . . . . . 8 . 11 Weapon 33 | . . 1 . . 1 . . 3 . 1 . . . . . 1 . . 7 1 18 Highest Loss Streak 22 | . . 2 . . 1 2 . 8 1 4 . . . . . 3 . . 12 1 22 To Critical Strikes 5 | . . . . . . . . . . 1 . . . . . . . . 1 . 3 Average Backups 15 | 4 14 19 18 16 14 13 14 11 14 16 16 16 16 17 17 17 15 17 16 17 15 Power 1 | . . . 2 1 . 1 1 . 1 1 1 1 1 1 1 . . . 1 1 1 Propulsion 2 | 2 4 7 6 5 1 . 1 . . 2 3 3 3 3 3 2 2 1 1 2 1 Utility 6 | . 4 6 6 6 6 6 6 6 8 6 5 6 6 7 7 7 7 8 5 6 6 Weapon 5 | . 4 5 3 3 5 4 4 3 3 5 6 5 4 5 5 5 5 5 7 5 4 Tool/Special . | . . . . . . . . . . . . . . . . . . . . . . Unused Backups 70 | . 3 3 1 4 13 2 . . 5 4 4 3 3 . 3 . . 2 9 5 6 Power 13 | . 1 . . 2 2 . . . . 1 3 . . . . . . . 1 1 2 Propulsion 13 | . 2 2 . 1 . 2 . . . 1 . . 1 . 2 . . . 2 . . Utility 25 | . . 1 1 1 6 . . . 2 1 . 3 1 . . . . 2 2 3 2 Weapon 16 | . . . . . 5 . . . 3 1 1 . 1 . 1 . . . 3 1 . Tool/Special 3 | . . . . . . . . . . . . . . . . . . . 1 . 2 Average Slot Usage (%) 93 | . 100 97 100 100 99 99 92 77 93 97 100 100 99 100 99 99 95 94 83 85 84 Engine 4 | . 14 12 14 14 9 9 7 7 6 3 . . . . . . . . . . . Reactor 3 | . . . . . . . . . . . 5 6 5 5 5 5 5 5 4 8 7 Treads 6 | . 27 17 28 28 . . . . 4 . . . . . . . . 5 11 8 4 Leg 17 | . . . . . 35 34 38 21 21 29 33 33 28 29 29 29 26 14 . . 11 Wheel 1 | . . 10 . . . 1 . 4 . 1 . . . . . . . . 3 4 1 Device 10 | . 14 . . 13 9 9 14 5 13 12 13 8 10 11 8 5 5 5 14 15 11 Storage 6 | . 14 14 14 14 9 9 7 7 6 6 6 6 5 5 5 5 5 5 4 4 4 Processor 10 | . . . . . 8 9 7 7 12 13 13 13 13 17 16 17 15 10 9 12 12 Hackware 2 | . . . . . . . . . . . . 4 8 5 5 8 10 10 3 1 7 Protection 6 | . . 12 14 . 8 8 7 7 13 12 13 13 . . 1 1 3 9 5 8 5 Energy Gun 5 | . 14 19 22 14 6 . . . . . 1 6 5 5 5 6 5 . 3 4 4 Energy Cannon 4 | . . . 5 4 . 14 7 11 6 7 . . . . . . . . 3 2 5 Ballistic Gun 7 | . 13 7 . . . . . . . . . 5 16 17 14 15 18 25 15 13 5 Ballistic Cannon 1 | . . . . 9 9 . . . 4 3 9 . . . . . . . . . . Peak Build Rating 185 | 7 10 12 13 19 32 41 45 47 50 74 91 93 107 106 133 134 144 151 156 176 185 Average Rating 88 | 5 9 11 12 16 30 35 42 35 47 61 80 92 102 106 115 128 138 147 147 168 167 On Entrance 71 | . 7 10 12 13 18 32 41 42 39 49 70 90 93 106 106 133 127 144 148 122 170 Avg Prop Armor Cover (%) 11 | . . 10 . . . 14 4 3 6 8 . . . . . . 3 2 14 15 10 Naked Turns . | . . . . . . . . . . . . . . . . . . . . . . Heaviest Build 135 | 12 50 54 56 56 65 67 66 74 78 82 92 89 92 85 95 93 97 108 124 128 135 Greatest Support 240 | 40 40 40 40 40 40 60 70 70 45 100 100 100 108 108 133 133 125 140 210 160 240 Greatest Overweight (x) 8 | . 4 5 1 1 2 6 1 7 7 8 . . . . . . 1 1 7 4 4 Average Overweight (x) 1 | . . 4 1 1 1 1 . 1 1 . . . . . . . . . 1 3 1 Largest Inventory Capacity 20 | 8 20 20 20 20 20 20 20 20 20 20 20 20 20 20 20 20 20 20 20 20 20 Average Capacity 19 | 7 15 20 20 20 20 20 20 20 20 20 20 20 20 20 20 20 20 20 20 20 20 Most Carried 20 | 5 20 20 20 20 20 20 20 20 20 20 20 20 20 20 20 20 19 20 20 20 20 Average Carried 18 | 4 14 19 19 19 19 18 19 16 19 19 19 19 19 20 19 19 17 19 18 19 16 Final Capacity 20 | 8 20 20 20 20 20 20 20 20 20 20 20 20 20 20 20 20 20 20 20 20 20 Final Carried 20 | 5 20 19 20 20 19 20 20 16 20 20 19 20 20 20 20 19 17 20 14 20 11 Class Distribution -------------------- 20% | Scavenger-Tank 20% | Mutant 19% | Scavenger-Mutant 13% | Scavenger-Skirmisher 8% | Scavenger-Gunner 7% | Commander-Mutant 4% | Scavenger-Executioner Dominant Class ---------------- Mutant | -10/Materials Mutant | -10/Mines Mutant | -10/Exiles Mutant | -9/Mines Scavenger-Mutant | -8/Materials Scavenger-Mutant | -8/Garrison Scavenger-Mutant | -7/Factory Mutant | -7/DSF Scavenger-Skirmisher | -6/Factory Scavenger-Mutant | -6/Extension Commander-Mutant | -6/Cetus Commander-Mutant | -6/Archives Commander-Skirmisher | -5/Factory Scavenger-Skirmisher | -5/Upper Caves Scavenger-Gunner | -5/Warlord Scavenger-Gunner | -4/Proximity Caves Scavenger-Skirmisher | -4/Factory Scavenger-Tank | -4/DSF Scavenger-Tank | -3/Research Scavenger-Tank | -2/Research Scavenger-Executioner | -1/Access Resources | -11 -10 -10 -10 -9 -8 -8 -7 -7 -6 -6 -6 -6 -5 -5 -5 -4 -4 -4 -3 -2 -1 ----------- Run | Yrd Mat Min Exi Min Mat Gar Fac DSF Fac Ext Cet Arc Fac Upp War Pro Fac DSF Res Res Acc Matter Collected 8849 | 238 90 248 . 218 510 490 . 202 88 1032 326 213 194 178 489 485 . 359 1211 892 1386 Remotely . | . . . . . . . . . . . . . . . . . . . . . . Salvage Created 14834 | 113 90 186 . 203 747 1329 . 518 160 1306 128 302 81 166 1092 604 . 539 1235 814 5221 Parts 647 | 6 12 20 . 9 35 66 . 15 11 43 10 17 6 8 51 21 . 24 60 16 217 Haulers Intercepted 11 | . . . . . 5 . . . . . . . . . . . . . 1 2 3 Recyclers Shooed 10 | 1 . 1 . 2 . . . . . 1 . . . . . . . . . . 5 Parts Field Recycled . | . . . . . . . . . . . . . . . . . . . . . . Retrieved Matter . | . . . . . . . . . . . . . . . . . . . . . . Parts Self-Destructed 36 | . . . . . . . . . . . . . . 14 . 22 . . . . . Prevented . | . . . . . . . . . . . . . . . . . . . . . . Parts Restored . | . . . . . . . . . . . . . . . . . . . . . . Kills | -11 -10 -10 -10 -9 -8 -8 -7 -7 -6 -6 -6 -6 -5 -5 -5 -4 -4 -4 -3 -2 -1 ------- Run | Yrd Mat Min Exi Min Mat Gar Fac DSF Fac Ext Cet Arc Fac Upp War Pro Fac DSF Res Res Acc Combat Hostiles Destroyed 240 | . 4 10 . 5 18 32 . 9 3 19 2 . 1 5 16 10 . 8 18 8 72 Guns 83 | . 4 3 . . 7 . . . . . . . 1 5 16 9 . 8 14 7 9 Cannons 69 | . . . . 2 7 13 . 4 2 16 2 . . . . . . . 2 . 21 AOE 69 | . . 7 . 3 4 18 . 1 . 2 . . . . . 1 . . 2 1 30 Classes Destroyed 24 | 2 3 2 . . 3 2 . 2 1 . . 1 . . 2 . . 1 2 1 2 Worker 10 | . . . . . . . . . 2 . . . . . . . . . 1 . 7 Builder 12 | . . 1 . . . . . . . 1 . . . . . . . . . . 10 Tunneler 8 | 2 . 2 . 1 . . . . . . . . . . . . . . 2 . 1 Hauler 11 | . . . . . 5 . . . . . . . . . . . . . 1 2 3 Recycler 11 | 1 . 1 . 2 . . . . . 3 . . . . . . . . . . 4 Mechanic 3 | . . . . . . . . . . . . . . . . . . . . . 3 Operator 7 | . . . . . . . . . . . . 7 . . . . . . . . . Watcher 7 | . 1 . . . 1 . . . . . 2 . . . . . . . . . 3 Swarmer 58 | . 3 3 . 3 6 11 . . . 4 . . . 4 . 2 . 4 4 . 14 Saboteur 1 | . . . . . . . . . . . . . . . . . . . . . 1 Grunt 86 | . 1 2 . 2 7 14 . 6 . 10 . . . . 4 7 . 2 . 5 26 Brawler 6 | . . . . . 1 . . . . . . . . 1 2 . . . 1 . 1 Duelist 7 | . . . . . . . . 1 . . . . . . 1 . . . . . 5 Protector 2 | . . . . . . . . . . . . . . . 1 . . . . . 1 Sentry 19 | . . . . . 4 4 . . 1 3 . . 1 . 1 1 . . 1 . 3 Demolisher 4 | . . . . . . . . . . . . . . . 1 . . . 2 1 . Specialist 4 | . . . . . . . . 2 . . . . . . . . . 1 . . 1 Hunter 10 | . . . . . . 1 . . . 1 . . . . . . . . 4 1 3 Programmer 29 | . . . . . . 3 . . 2 . . . . . 7 . . . 1 . 16 Heavy 1 | . . . . . . . . . . . . . . . . . . 1 . . . Behemoth 1 | . . . . . . . . . . . . . . . . . . . . 1 . Cetus Guard 2 | . . . . . . . . . . . 2 . . . . . . . . . . Striker 5 | . . . . . . . . . . . . . . . . . . . 5 . . Assembled 5 | . . 5 . . . . . . . . . . . . . . . . . . . Thug 2 | . . . . . . . . . . 1 . . . . . . . . . . 1 Savage 1 | . . . . . . . . . . . . 1 . . . . . . . . . Guerrilla 1 | . . . . . . 1 . . . . . . . . . . . . . . . Commander 1 | . . . . . . . . . . . . . . . 1 . . . . . . Revision 1 | . . . . . . . . . . . . . . . . . . . 1 . . Best Kill Streak 22 | 2 2 5 . 4 4 6 . 4 1 3 3 3 1 4 6 6 . 4 6 4 22 Combat Bots Only 18 | . 2 5 . 3 3 6 . 4 1 3 2 . 1 4 6 6 . 4 6 4 18 Max Kills in Single Turn 4 | 1 1 3 . 3 2 3 . 1 1 1 1 2 1 2 3 2 . 4 2 2 4 Gunslinging 2 | . . . . . . . . . . . . . . 1 1 1 . 2 . 1 . Exploded 4 | . . 2 . 2 2 3 . 1 . 1 . . . . . 1 . . 2 1 4 Melee . | . . . . . . . . . . . . . . . . . . . . . . Uniques/NPCs Destroyed . | . . . . . . . . . . . . . . . . . . . . . . Combat | -11 -10 -10 -10 -9 -8 -8 -7 -7 -6 -6 -6 -6 -5 -5 -5 -4 -4 -4 -3 -2 -1 -------- Run | Yrd Mat Min Exi Min Mat Gar Fac DSF Fac Ext Cet Arc Fac Upp War Pro Fac DSF Res Res Acc Hostile Shots Fired 1700 | . 7 29 . 13 60 87 . 58 37 183 26 . 16 10 48 106 . 42 387 45 546 Missed 540 | . 5 12 . 4 22 20 . 20 11 59 11 . 6 3 24 37 . 10 116 17 163 Intercepted 2 | . . . . . . . . . . . . . . . . . . . . 2 . Hits 1160 | . 2 17 . 9 38 67 . 38 26 124 15 . 10 7 24 69 . 32 271 28 383 Melee 40 | . . 4 . . . . . . . . . . . . . . . . 19 . 17 Projectile 1120 | . 2 13 . 9 38 67 . 38 26 124 15 . 10 7 24 69 . 32 252 28 366 AOE 18 | . . 5 . . 3 . . . . . . . . . 3 . . . 5 2 . Critical Strikes 57 | . . . . . . 6 . . . 5 1 . . . 1 1 . . 8 3 32 Part Disruptions 1 | . . . . . . . . . . . . . . . . . . . . . 1 Damage Taken 26539 | . 38 524 . 105 593 978 . 1778 279 2561 320 22 205 119 562 1301 . 602 5897 972 9683 Core 3102 | . 20 55 . 12 71 137 . 346 29 511 72 . 62 37 128 141 . 12 545 205 719 Absorbed by Shields 883 | . . . . . . . . . . 44 79 . . . 44 . . 219 368 129 . Reduced by Siege Mode 244 | . . . . . . . . . . . . . . . . . . 34 . . 210 Redirected to Shielding 106 | . . . . . . . . . . . . . . . . . . . . . 106 Ignored by Resistances 179 | . . . . . . . . 74 8 15 . . . . . . . . . 82 . Regen/Repaired (Parts) 335 | . . . . . . . . . . . . . . . 77 . . . . 258 . Core Remaining (%) 67 | 100 . . . 65 . 62 . 50 . . . 28 . . . 63 . 98 58 85 . Volleys Fired 734 | 12 10 23 . 14 61 75 . 19 24 95 13 38 15 9 26 19 5 18 63 27 168 Largest 6 | 2 2 2 . 2 2 2 . 2 2 2 2 2 4 4 4 4 1 5 5 5 6 Hottest 385 | 40 85 130 . 125 105 128 . 140 134 180 88 124 240 185 185 233 240 184 285 299 385 Shots Fired 1574 | 24 19 35 . 26 92 112 . 28 42 170 26 72 34 30 90 64 5 66 190 86 363 Gun 847 | 24 18 28 . 12 29 . . . . . . 70 34 30 90 62 5 66 147 71 161 Cannon 638 | . . . . 12 59 95 . 23 42 161 26 2 . . . . . . 41 12 165 Launcher 89 | . 1 7 . 2 4 17 . 5 . 9 . . . . . 2 . . 2 3 37 Special . | . . . . . . . . . . . . . . . . . . . . . . Kinetic 776 | 24 9 8 . 6 57 10 . 2 20 50 26 38 21 27 73 50 . 60 133 51 111 Thermal 676 | . 9 20 . 18 31 85 . 16 22 111 . 34 13 3 17 12 5 6 55 32 187 Explosive 44 | . 1 7 . 2 4 . . . . . . . . . . 2 . . 2 3 23 Electromagnetic 78 | . . . . . . 17 . 10 . 9 . . . . . . . . . . 42 Robot Hit Streak 31 | 3 5 7 . 5 12 15 . 22 8 15 5 6 4 3 17 14 . 19 31 15 21 Robot Miss Streak 8 | 4 8 5 . 3 5 3 . 1 2 3 3 4 6 5 3 3 . 2 3 3 5 Penetration Max 2 | . . . . . . . . . . . . . 1 1 1 1 . 1 2 1 1 Secondary Targets 21 | . . . . . . . . . . . . . . 2 3 5 . 3 4 3 1 Max Gunslinging Chain 2 | . . . . . . . . . . . . . . 1 1 1 . 2 1 1 1 Shots Hit Robots 879 | 12 12 23 . 16 53 50 . 21 17 90 16 41 12 11 66 38 . 42 120 53 186 Core Hits 720 | 5 8 41 . 20 70 46 . 14 6 42 9 18 9 8 44 22 . 18 64 24 252 Critical Kills 26 | . . . . . . . . 2 1 1 . 4 . 1 8 2 . 1 2 1 3 Critical Parts Destroyed 20 | . . . . . . . . . . . . 2 3 . 9 3 . . 1 1 1 Critical Strikes 58 | . . . . . . . . 2 2 4 1 6 3 1 18 5 . 1 6 2 7 Burn 5 | . . . . . . . . . . . . . . . . . . . 3 . 2 Meltdown 7 | . . . . . . . . 2 1 1 . . . . . . . . . . 3 Destroy 40 | . . . . . . . . . . . . 6 3 1 18 5 . 1 3 2 1 Blast 6 | . . . . . . . . . 1 3 1 . . . . . . . . . 1 Melee Attacks 21 | . . . . . . 21 . . . . . . . . . . . . . . . Impact 21 | . . . . . . 21 . . . . . . . . . . . . . . . Slashing . | . . . . . . . . . . . . . . . . . . . . . . Piercing . | . . . . . . . . . . . . . . . . . . . . . . Sneak Attacks . | . . . . . . . . . . . . . . . . . . . . . . Combat Hostiles . | . . . . . . . . . . . . . . . . . . . . . . Follow-up Attacks . | . . . . . . . . . . . . . . . . . . . . . . Damage Inflicted 40393 | 96 154 762 . 402 1269 2222 . 863 613 3023 568 1255 543 365 2629 1860 . 1156 4097 1867 16649 Guns 15253 | 96 154 286 . 144 379 . . . . . . 1228 543 365 2629 1299 . 1156 3026 1191 2757 Cannons 10974 | . . . . 131 672 1158 . 451 612 2789 568 27 . . . . . . 646 216 3704 Explosions 14123 | . . 476 . 126 215 1064 . 412 . 234 . . . . . 561 . . 400 460 10175 Melee . | . . . . . . . . . . . . . . . . . . . . . . Ramming 43 | . . . . 1 3 . . . 1 . . . . . . . . . 25 . 13 Kinetic 13964 | 96 96 39 . 77 622 143 . 30 322 861 568 532 435 344 2204 979 . 1156 2717 817 1926 Thermal 12270 | . 58 247 . 198 429 1049 . 335 290 1928 . 723 108 21 425 320 . . 955 590 4594 Explosive 8552 | . . 476 . 126 215 . . . . . . . . . . 561 . . 400 460 6314 Electromagnetic 5564 | . . . . . . 1030 . 498 . 234 . . . . . . . . . . 3802 Impact . | . . . . . . . . . . . . . . . . . . . . . . Slashing . | . . . . . . . . . . . . . . . . . . . . . . Piercing . | . . . . . . . . . . . . . . . . . . . . . . Highest Corruption 38 | . . 5 5 5 . 3 . 11 5 21 21 21 . . 2 2 . . . 2 38 Average Corruption 8 | . . 5 5 5 . 2 . 3 4 13 21 21 . . 1 2 . . . 2 11 Corruption Purged . | . . . . . . . . . . . . . . . . . . . . . . Corruption Blocked 12 | . . . . . . . . . . . . . . . . . . . . . 12 Effects 238 | . . 6 15 26 . 13 . 1 7 75 21 17 . . . 5 . . . 5 47 Message Errors 62 | . . 3 3 6 . 5 . 1 2 16 6 7 . . . 2 . . . 1 10 Matter Fused 56 | . . 1 8 7 . 1 . . . 16 5 3 . . . 1 . . . 1 13 Heat Flow Errors 28 | . . . 1 3 . 1 . . . 13 3 . . . . 2 . . . . 5 Energy Discharges 24 | . . . . 6 . 4 . . . 9 1 2 . . . . . . . 1 1 Parts Rejected 5 | . . . . 1 . . . . 1 . 1 . . . . . . . . . 2 Parts Fused 3 | . . . . . . . . . . 1 . . . . . . . . . . 2 Data Loss (minor) 26 | . . . 1 2 . 2 . . 1 7 3 2 . . . . . . . 2 6 Data Loss (major) 6 | . . 1 2 1 . . . . . 1 1 . . . . . . . . . . Misfires 6 | . . . . . . . . . 2 2 . 1 . . . . . . . . 1 Alerts 6 | . . . . . . . . . 1 3 1 1 . . . . . . . . . Misdirections 1 | . . . . . . . . . . . . . . . . . . . . . 1 Weapon Failures 15 | . . 1 . . . . . . . 7 . 1 . . . . . . . . 6 Overload Shots 11 | . . . . . . . . . . . . . 6 . . . 5 . . . . Overflow Damage 639 | . . 8 . . 4 16 . 8 94 34 . . . . . . . . 2 . 473 Projectiles 285 | . . . . . . . . 8 94 33 . . . . . . . . . . 150 Explosions 354 | . . 8 . . 4 16 . . . 1 . . . . . . . . 2 . 323 Melee . | . . . . . . . . . . . . . . . . . . . . . . Knockbacks 17 | . . . . 1 1 . . . 2 8 . 1 . . . . . . 1 . 3 Impact 1 | . . . . . . . . . . . . . . . . . . . 1 . . Kinetic 15 | . . . . 1 1 . . . 2 7 . 1 . . . . . . . . 3 Secondary 1 | . . . . . . . . . . 1 . . . . . . . . . . . Self-Inflicted Damage 574 | . . 64 . . 30 54 . . . . . . . . . . . . 35 . 391 Shots 26 | . . 3 . . 1 3 . . . . . . . . . . . . 1 . 18 Rammed 3 | . . . . 1 . . . . . . . . . . . . . . 2 . . Targets Rammed 8 | . . . . 1 2 . . . 1 . . . . . . . . . 2 . 2 Kicked 5 | . . . . . 2 . . . 1 . . . . . . . . . . . 2 Crushed . | . . . . . . . . . . . . . . . . . . . . . . Highest Temperature 682 | . 72 354 251 210 . 242 . 68 217 499 220 72 284 90 129 328 682 84 350 139 376 Average Temperature 108 | . 24 102 130 106 . 34 . 33 89 174 108 54 94 43 59 80 499 39 90 52 125 Received Heat Transfer 2913 | . 6 100 . 57 162 387 . 261 24 558 . 9 72 18 18 318 . 80 218 157 468 Effects 21 | . . 1 1 . . . . . . 4 . . 1 . . 1 8 . . . 5 Shutdowns 3 | . . . . . . . . . . . . . . . . . 2 . . . 1 Energy Bleed 3 | . . 1 1 . . . . . . . . . 1 . . . . . . . . Interference 13 | . . . . . . . . . . 4 . . . . . 1 4 . . . 4 Short Circuit 1 | . . . . . . . . . . . . . . . . . 1 . . . . Damage (minor) 1 | . . . . . . . . . . . . . . . . . 1 . . . . Siege Activations 3 | . . . . . . . . . . . . . . . . . . 1 . . 2 Total Turns 55 | . . . . . . . . . . . . . . . . . . 16 . . 39 Longest Duration 20 | . . . . . . . . . . . . . . . . . . 16 . . 20 Martial Activations . | . . . . . . . . . . . . . . . . . . . . . . Shielding Activations . | . . . . . . . . . . . . . . . . . . . . . . Robots Disrupted 2 | . . . . . . . . . . . . . . . . . . . . . 2 Combat Hostiles 2 | . . . . . . . . . . . . . . . . . . . . . 2 Robots Corrupted 14 | . . . . . . 1 . 2 . . . . . . . . . . . . 11 Combat Hostiles 14 | . . . . . . 1 . 2 . . . . . . . . . . . . 11 Parts Fried 25 | . . . . . . 3 . 2 . 2 . . . . . . . . . . 18 Impact Corruptions . | . . . . . . . . . . . . . . . . . . . . . . Robots Melted 7 | . . . . . . . . 2 1 1 . . . . . . . . . . 3 Combat Hostiles 5 | . . . . . . . . 2 1 1 . . . . . . . . . . 1 Parts Melted 37 | . . . . . . 3 . 5 . 3 . . . . . 2 . . 3 1 20 Heat Transferred 14701 | . 75 300 . 291 539 1695 . 481 333 2849 . 851 111 37 386 370 . . 1358 703 4322 Parts Sabotaged . | . . . . . . . . . . . . . . . . . . . . . . Parts Stolen . | . . . . . . . . . . . . . . . . . . . . . . Parts Stripped . | . . . . . . . . . . . . . . . . . . . . . . Power Chain Reactions 7 | . . . . . . 2 . . . . . . . . . . . . . . 5 Alert | -11 -10 -10 -10 -9 -8 -8 -7 -7 -6 -6 -6 -6 -5 -5 -5 -4 -4 -4 -3 -2 -1 ------- Run | Yrd Mat Min Exi Min Mat Gar Fac DSF Fac Ext Cet Arc Fac Upp War Pro Fac DSF Res Res Acc Maximum Alert Level 5 | . . . . . . 4 2 2 1 1 . 1 2 . . . . 1 1 . 5 Low Security (%) 66 | 100 100 100 . 100 100 6 . . 89 82 100 26 18 . . . 100 93 72 100 33 Level 1 14 | . . . . . . 14 . 82 10 17 . 73 39 . . . . 6 27 . 21 Level 2 6 | . . . . . . 16 100 17 . . . . 42 . . . . . . . 9 Level 3 4 | . . . . . . 31 . . . . . . . . . . . . . . 7 Level 4 6 | . . . . . . 30 . . . . . . . . . . . . . . 23 Level 5 . | . . . . . . . . . . . . . . . . . . . . . 3 High Security . | . . . . . . . . . . . . . . . . . . . . . . Max Security . | . . . . . . . . . . . . . . . . . . . . . . Sterilizations 2 | . . . . . . . . 1 . . . . . . . . . 1 . . . Peak Influence 1899 | 5 72 100 . 97 143 1236 648 441 231 268 199 232 595 . . . 27 206 343 164 1899 Initial 648 | . . . . . . 90 648 341 231 . 60 54 63 . . . . 11 115 164 32 Average 239 | . 12 31 . 17 37 766 569 352 79 133 112 196 302 . . . 3 73 129 67 550 Influence Increases 10724 | 15 187 245 . 166 641 1216 . 210 127 1170 359 308 886 298 457 210 27 195 926 360 2721 Destroy 0b10 Robot/C 5820 | . 80 100 . 100 360 700 . 180 60 640 160 80 300 160 380 200 . 160 580 160 1420 Destroy 0b10 Robot/NC 390 | 15 5 20 . 15 30 . . . 10 30 10 40 10 . 10 . . . 25 10 160 Destroy Leader 828 | . 22 20 . 20 92 20 . 30 30 74 . . 54 30 . 10 . 20 122 34 250 Allied During Kill 1084 | . . . . . . 20 . . . 230 170 120 361 108 52 . . . 23 . . Successful Hack 181 | . 25 . . . 43 7 . . . 7 . . 36 . . . 3 . 42 . 18 Disable Machine 405 | . . 15 . 15 30 30 . . 15 75 15 60 60 . . . . 15 15 15 45 Anti-Garrison Action 350 | . . . . . . 350 . . . . . . . . . . . . . . . Destroy Structure 1171 | . 10 30 . 16 56 89 . . 12 39 4 8 50 . . . 24 . 104 126 603 Partial Spotted 15 | . . . . . . . . . . . . . . . . . . . . . 15 Lose Combat Pursuer 480 | . 45 60 . . 30 . . . . 75 . . 15 . 15 . . . 15 15 210 Influence Decreases 8927 | 15 187 224 21 166 502 119 748 257 568 1061 331 263 655 559 236 583 10 6 839 599 978 Entered New Map 2192 | . . . 21 . . 49 588 147 210 . 49 83 119 153 152 373 . 6 91 129 22 Time Decay 4901 | 15 187 195 . 166 452 . 160 . 348 551 222 160 286 386 84 180 10 . 518 460 521 Lost Part 1004 | . . 29 . . 20 30 . 110 10 140 . . . . . 30 . . 190 10 435 Lost Ally 510 | . . . . . 10 40 . . . 220 60 20 100 20 . . . . 40 . . Purge Threat 320 | . . . . . 20 . . . . 150 . . 150 . . . . . . . . Squads Dispatched 40 | . 1 . . 1 2 . . 1 1 4 . . 2 . . . . 1 6 1 20 Investigation 8 | . 1 . . 1 1 . . . . 1 . . 1 . . . . . 2 . 1 Extermination 8 | . . . . . . . . . 1 . . . 1 . . . . . . . 6 Reinforcement 15 | . . . . . . . . 1 . 3 . . . . . . . 1 4 1 5 Assault 5 | . . . . . . . . . . . . . . . . . . . . . 5 Garrison 4 | . . . . . 1 . . . . . . . . . . . . . . . 3 Intercept . | . . . . . . . . . . . . . . . . . . . . . . Searches Triggered . | . . . . . . . . . . . . . . . . . . . . . . Construction Impeded 5 | . . . . . . . . . . 3 . . . . . . . . . . 2 Haulers Reinforced 2 | . . . . . . . . . . . . . . . . . . . . . 2 Active Scanning Responses . | . . . . . . . . . . . . . . . . . . . . . . Cargo Convoy Interrupts 1 | . . . . . . . . . 1 . . . . . . . . . . . . Stealth | -11 -10 -10 -10 -9 -8 -8 -7 -7 -6 -6 -6 -6 -5 -5 -5 -4 -4 -4 -3 -2 -1 --------- Run | Yrd Mat Min Exi Min Mat Gar Fac DSF Fac Ext Cet Arc Fac Upp War Pro Fac DSF Res Res Acc Distress Signals 31 | . 2 . . . 2 . . . . . 2 . 1 . 2 . . . 6 6 10 Communications Jammed 42 | . . . . . . . . . . . . . . . . . . . . . 42 Distress Signals 41 | . . . . . . . . . . . . . . . . . . . . . 41 Times Spotted 417 | . 8 21 . 4 27 33 . 10 5 32 9 18 10 7 44 11 . 9 40 20 109 Peak Tracking Total 12 | . 3 8 . 3 4 5 . 4 2 5 5 1 5 3 12 7 . 4 7 5 11 Tactical Retreats 23 | . 2 2 . . 2 . . . . 4 . . 1 . 1 . . . 1 1 9 Traps | -11 -10 -10 -10 -9 -8 -8 -7 -7 -6 -6 -6 -6 -5 -5 -5 -4 -4 -4 -3 -2 -1 ------- Run | Yrd Mat Min Exi Min Mat Gar Fac DSF Fac Ext Cet Arc Fac Upp War Pro Fac DSF Res Res Acc Traps Triggered 18 | . 2 . . . 2 7 . . . 4 . . 1 . . . . 1 1 . . Indirectly 3 | . . . . . . 1 . . . 2 . . . . . . . . . . . Trap Hack Attempts . | . . . . . . . . . . . . . . . . . . . . . . Triggered . | . . . . . . . . . . . . . . . . . . . . . . Disarmed . | . . . . . . . . . . . . . . . . . . . . . . Reprogrammed . | . . . . . . . . . . . . . . . . . . . . . . Reused . | . . . . . . . . . . . . . . . . . . . . . . Traps Extracted . | . . . . . . . . . . . . . . . . . . . . . . Installed 1 | . . . . . . 1 . . . . . . . . . . . . . . . Triggered . | . . . . . . . . . . . . . . . . . . . . . . Most Traps Carried 2 | . . . . 2 2 2 1 1 1 1 . . . . . . . . . . . Machines | -11 -10 -10 -10 -9 -8 -8 -7 -7 -6 -6 -6 -6 -5 -5 -5 -4 -4 -4 -3 -2 -1 ---------- Run | Yrd Mat Min Exi Min Mat Gar Fac DSF Fac Ext Cet Arc Fac Upp War Pro Fac DSF Res Res Acc Machines Disabled 35 | . . 1 . 1 2 7 . . 1 5 1 4 4 . 1 2 . 1 1 1 3 Max in Single Turn 1 | . . 1 . 1 1 1 . . 1 1 1 1 . . 1 1 . 1 1 1 1 Garrison Access 2 | . . . . . . . . . . . . . . . . . . . . 2 . Garrison Relay 5 | . . . . . . 5 . . . . . . . . . . . . . . . Machines Repaired . | . . . . . . . . . . . . . . . . . . . . . . Machines Dismantled 6 | . . . . . . . . . . 4 1 . . . 1 . . . . . . Machines Sabotaged . | . . . . . . . . . . . . . . . . . . . . . . Overloaded Fab Kills . | . . . . . . . . . . . . . . . . . . . . . . Hacking | -11 -10 -10 -10 -9 -8 -8 -7 -7 -6 -6 -6 -6 -5 -5 -5 -4 -4 -4 -3 -2 -1 --------- Run | Yrd Mat Min Exi Min Mat Gar Fac DSF Fac Ext Cet Arc Fac Upp War Pro Fac DSF Res Res Acc Machines Accessed 46 | . 4 . 2 1 9 3 3 . 3 6 . . 3 1 1 1 1 . 3 1 4 Terminals 36 | . 4 . . . 6 3 3 . 3 6 . . 2 1 . 1 1 . 3 . 3 Fabricators . | . . . . . . . . . . . . . . . . . . . . . . Repair Stations . | . . . . . . . . . . . . . . . . . . . . . . Recycling Units . | . . . . . . . . . . . . . . . . . . . . . . Scanalyzers 3 | . . . . . 2 . . . . . . . 1 . . . . . . . . Garrison Access 3 | . . . . . 1 . . . . . . . . . . . . . . 1 1 Total Hacks 108 | . 12 . 3 1 28 5 9 . 6 12 . . 6 1 1 8 1 . 5 1 9 Successful 54 | . 8 . 3 1 17 2 2 . 2 2 . . 3 1 1 8 1 . 2 . 1 Failed 53 | . 4 . . . 10 3 7 . 4 10 . . 3 . . . . . 3 1 8 Catastrophic 12 | . . . . . 1 1 1 . . 3 . . 1 . . . . . 1 1 3 Database Lockouts 1 | . . . . . 1 . . . . . . . . . . . . . . . . Manual 36 | . 6 . 1 . 9 . 4 . 5 3 1 . 2 . . . . . 2 . 3 Terminals 86 | . 12 . . . 18 5 9 . 6 12 . . 3 1 . 8 1 . 5 . 6 Fabricators . | . . . . . . . . . . . . . . . . . . . . . . Repair Stations . | . . . . . . . . . . . . . . . . . . . . . . Recycling Units . | . . . . . . . . . . . . . . . . . . . . . . Scanalyzers 12 | . . . . . 9 . . . . . . . 3 . . . . . . . . Garrison Access 5 | . . . . . 1 . . . . . . . . . . . . . . 1 3 Terminal Hacks 34 | . 8 . 3 1 4 2 1 . . 2 . . 1 1 1 8 1 . 1 . . Record 11 | . . . 2 . . . . . . . . . . 1 . 8 . . . . . Part Schematic 1 | . 1 . . . . . . . . . . . . . . . . . . . . Robot Analysis 3 | . 2 . . . . . . . . . . . . . . . . . 1 . . Open Door 4 | . . . . 1 . 1 . . . 1 . . . . 1 . . . . . . Open DSF 2 | . . . . . . . 1 . . . . . . . . . 1 . . . . Emergency Access Points 1 | . . . . . . 1 . . . . . . . . . . . . . . . Terminal Index 1 | . 1 . . . . . . . . . . . . . . . . . . . . Unreport Threat 3 | . . . . . 1 . . . . 1 . . 1 . . . . . . . . Hauler Manifests 1 | . 1 . . . . . . . . . . . . . . . . . . . . Registered Components 1 | . 1 . . . . . . . . . . . . . . . . . . . . Registered Prototypes 1 | . 1 . . . . . . . . . . . . . . . . . . . . Zone Layout 4 | . 1 . . . 3 . . . . . . . . . . . . . . . . Proto ID Catalog 1 | . . . 1 . . . . . . . . . . . . . . . . . . Fabricator Hacks . | . . . . . . . . . . . . . . . . . . . . . . Repair Station Hacks . | . . . . . . . . . . . . . . . . . . . . . . Recycling Unit Hacks . | . . . . . . . . . . . . . . . . . . . . . . Scanalyzer 9 | . . . . . 7 . . . . . . . 2 . . . . . . . . Insert Component 4 | . . . . . 4 . . . . . . . . . . . . . . . . Analyze 2 | . . . . . 2 . . . . . . . . . . . . . . . . Retrieve Study 3 | . . . . . 1 . . . . . . . 2 . . . . . . . . Garrison Access Hacks 1 | . . . . . 1 . . . . . . . . . . . . . . . . Unlock Access 1 | . . . . . 1 . . . . . . . . . . . . . . . . Unauthorized Hacks 10 | . . . . . 5 . 1 . 2 . . . . . . . . . 1 . 1 Terminals 10 | . . . . . 5 . 1 . 2 . . . . . . . . . 1 . 1 Assimilate 3 | . . . . . 2 . . . . . . . . . . . . . . . 1 Botnet 7 | . . . . . 3 . 1 . 2 . . . . . . . . . 1 . . Fabricators . | . . . . . . . . . . . . . . . . . . . . . . Repair Stations . | . . . . . . . . . . . . . . . . . . . . . . Recycling Units . | . . . . . . . . . . . . . . . . . . . . . . Scanalyzers . | . . . . . . . . . . . . . . . . . . . . . . Garrison Access . | . . . . . . . . . . . . . . . . . . . . . . Data Cores Recovered . | . . . . . . . . . . . . . . . . . . . . . . Used . | . . . . . . . . . . . . . . . . . . . . . . Hacking Detections 33 | . 2 . . . 7 2 3 . 3 5 . . 3 . . . . . 3 1 4 Full Trace Events 2 | . . . . . . . . . . . . . 1 . . . . . . . 1 Feedback Events . | . . . . . . . . . . . . . . . . . . . . . . Feedback Blocked . | . . . . . . . . . . . . . . . . . . . . . . Robot Schematics Acquired . | . . . . . . . . . . . . . . . . . . . . . . Robots Built . | . . . . . . . . . . . . . . . . . . . . . . Authchips . | . . . . . . . . . . . . . . . . . . . . . . Time . | . . . . . . . . . . . . . . . . . . . . . . Total Robot Build Rating . | . . . . . . . . . . . . . . . . . . . . . . Part Schematics Acquired 2 | . 1 . . . 1 . . . . . . . . . . . . . . . . Parts Built . | . . . . . . . . . . . . . . . . . . . . . . Authchips . | . . . . . . . . . . . . . . . . . . . . . . Time . | . . . . . . . . . . . . . . . . . . . . . . Total Part Build Rating . | . . . . . . . . . . . . . . . . . . . . . . Part Studies Acquired 3 | . . . . . 1 . . . . . . . 2 . . . . . . . . Parts Repaired . | . . . . . . . . . . . . . . . . . . . . . . Time . | . . . . . . . . . . . . . . . . . . . . . . Parts Recycled . | . . . . . . . . . . . . . . . . . . . . . . Recycled Matter . | . . . . . . . . . . . . . . . . . . . . . . Retrieved Matter . | . . . . . . . . . . . . . . . . . . . . . . Retrieved Components . | . . . . . . . . . . . . . . . . . . . . . . Parts Scanalyzed 1 | . . . . . 1 . . . . . . . . . . . . . . . . Part Schematics Acquired 1 | . . . . . 1 . . . . . . . . . . . . . . . . Parts Damaged . | . . . . . . . . . . . . . . . . . . . . . . Bothacking | -11 -10 -10 -10 -9 -8 -8 -7 -7 -6 -6 -6 -6 -5 -5 -5 -4 -4 -4 -3 -2 -1 ------------ Run | Yrd Mat Min Exi Min Mat Gar Fac DSF Fac Ext Cet Arc Fac Upp War Pro Fac DSF Res Res Acc Used RIF Installer . | . . . . . . . . . . . . . . . . . . . . . . Robots Hacked . | . . . . . . . . . . . . . . . . . . . . . . Non-combat . | . . . . . . . . . . . . . . . . . . . . . . Combat . | . . . . . . . . . . . . . . . . . . . . . . Robot Hacks Applied . | . . . . . . . . . . . . . . . . . . . . . . Relay Couplers Released 24 | . . . . . . 21 . . . . . . . . . . . . . 3 . Machine Destruction 24 | . . . . . . 21 . . . . . . . . . . . . . 3 . Fabnet Peak Effective % . | . . . . . . . . . . . . . . . . . . . . . . Robots Rewired 25 | . . . . . . 3 . . . 19 . . . . 3 . . . . . . Allies Hacked 2 | . . . . . . 2 . . . . . . . . . . . . . . . Hacks Repelled . | . . . . . . . . . . . . . . . . . . . . . . Allies | -11 -10 -10 -10 -9 -8 -8 -7 -7 -6 -6 -6 -6 -5 -5 -5 -4 -4 -4 -3 -2 -1 -------- Run | Yrd Mat Min Exi Min Mat Gar Fac DSF Fac Ext Cet Arc Fac Upp War Pro Fac DSF Res Res Acc Total Allies 41 | . . . . . 2 4 . . . 26 5 . . . 3 . . . . . 1 Largest Group 17 | . . . . . 2 4 . . . 15 17 17 14 4 4 . . . . . 1 Highest-Rated Group 956 | . . . . . 36 87 . . . 552 956 945 734 243 214 . . . . . 45 Highest-Rated Ally 159 | . . . . . 26 39 . . . 159 159 153 96 96 96 . . . . . 45 Initial Warlord ECA Mod 24 | . . . . . . . 8 8 17 17 17 17 16 16 16 15 15 15 24 23 22 Total Orders 4 | . . . . . . . . . . . . . . 2 2 . . . . . . STAY 3 | . . . . . . . . . . . . . . 1 2 . . . . . . FOLLOW 1 | . . . . . . . . . . . . . . 1 . . . . . . . Ally Attacks 329 | . . . . . . 28 . . . 77 38 19 84 15 32 . . . 36 . . Total Damage 9396 | . . . . . . 405 . . . 1956 732 449 1899 941 1245 . . . 1769 . . Kills 67 | . . . . . . 3 . . . 15 6 5 18 3 5 . . . 12 . . Allies Corrupted 1 | . . . . . . 1 . . . . . . . . . . . . . . . Allies Melted 4 | . . . . . . . . . . 1 . . . . . . . . . 3 . Turrets Deployed 3 | . . . . . . . . . . . . . . . 1 . . . 2 . . Intel | -11 -10 -10 -10 -9 -8 -8 -7 -7 -6 -6 -6 -6 -5 -5 -5 -4 -4 -4 -3 -2 -1 ------- Run | Yrd Mat Min Exi Min Mat Gar Fac DSF Fac Ext Cet Arc Fac Upp War Pro Fac DSF Res Res Acc Active Infowar (turns) 7952 | 19 872 28 . . 65 5 330 . 924 113 . . 624 919 590 417 60 2 1596 . 1388 Optics 1 | . . . . . . . . . . . . . . . 1 . . . . . . Sensors 1933 | . . . . . . . . . . . . . . 906 589 417 21 . . . . Terrain 4077 | . . . . . 65 5 330 . 924 113 . . 624 13 . . 40 2 1596 . 365 Seismic 919 | 19 872 28 . . . . . . . . . . . . . . . . . . . Jamming 1388 | . . . . . . . . . . . . . . . . . . . . . 1388 ECM 1 | . . . . . . . . . . . . . . . . . . . . . 1 Robot Analysis Total 3 | . 2 . . . . . . . . . . . . . . . . . 1 . . Derelict Logs Recovered 5 | . . 1 . 2 . . . . . . . . . 2 . . . . . . . Drone Launches . | . . . . . . . . . . . . . . . . . . . . . . Drone Recoveries . | . . . . . . . . . . . . . . . . . . . . . . Exploration | -11 -10 -10 -10 -9 -8 -8 -7 -7 -6 -6 -6 -6 -5 -5 -5 -4 -4 -4 -3 -2 -1 ------------- Run | Yrd Mat Min Exi Min Mat Gar Fac DSF Fac Ext Cet Arc Fac Upp War Pro Fac DSF Res Res Acc Turns Passed 19756 | 138 872 546 605 993 1395 1726 331 373 924 1764 470 330 630 919 901 540 62 321 1895 1693 2328 Spaces Moved 10135 | 59 404 268 249 390 619 756 249 142 361 789 224 162 441 769 644 416 43 133 943 995 1079 Core 5 | 5 . . . . . . . . . . . . . . . . . . . . . Treads 1849 | 54 397 51 249 390 . . . . . 1 . . . . . . . 50 528 11 118 Legs 6205 | . . . . . 619 651 249 135 341 723 224 162 441 769 644 416 43 83 . . 705 Wheels 2076 | . 7 217 . . . 105 . 7 20 65 . . . . . . . . 415 984 256 Hover . | . . . . . . . . . . . . . . . . . . . . . . Flight . | . . . . . . . . . . . . . . . . . . . . . . Fastest Speed 50 | 50 140 140 240 240 175 170 111 111 170 120 120 120 114 114 109 106 106 107 112 129 116 Average Speed 157 | 150 197 168 240 240 177 180 129 202 224 135 120 120 119 114 110 106 115 135 170 155 155 Slowest Speed 525 | 160 240 240 240 240 245 525 182 252 250 400 120 120 120 114 114 109 177 270 230 160 330 Overloaded Moves . | . . . . . . . . . . . . . . . . . . . . . . Propulsion Burnouts . | . . . . . . . . . . . . . . . . . . . . . . Robots Hopped . | . . . . . . . . . . . . . . . . . . . . . . Potential Cave-ins 16 | . . . . . . . . . . 9 . . . . . . 1 . 6 . . Cave-ins Triggered 4 | . . . . . . . . . . 3 . . . . . . . . . 1 . Exploration Rate (%) 51 | 3 59 58 61 89 56 88 12 100 8 63 68 82 12 76 69 60 2 78 28 36 25 Regions Visited 21 Branch Regions 9 Pre-discovered Areas 3 | . . . 1 . . . . . . . . . . 1 . 1 . . . . . Known Exits Taken 9 | . . . 1 . 1 . 1 . . . . . 1 1 1 1 1 . 1 . . Unknown Exits Taken 9 | 1 1 1 . 1 . . . . 1 1 1 1 . . . . . . . 1 . Scrap Searched 4 | . . 1 . 1 . . . . . . . . . 1 . 1 . . . . . Spaces Dug 137 | . 10 12 . . 10 13 . . 6 8 . . 5 4 . 1 3 . 35 5 25 Terrain Destroyed 687 | . 10 58 . 19 51 13 . . 13 53 3 10 11 20 23 57 5 1 61 42 237 Melee 13 | . . . . . . 13 . . . . . . . . . . . . . . . Projectile 319 | . . . . 3 26 . . . 13 53 3 10 11 20 23 30 5 1 37 10 74 AOE 355 | . 10 58 . 16 25 . . . . . . . . . . 27 . . 24 32 163 Terrain Rammed . | . . . . . . . . . . . . . . . . . . . . . . Walls Destroyed . | . . . . . . . . . . . . . . . . . . . . . . Machines Disabled . | . . . . . . . . . . . . . . . . . . . . . . Actions | -11 -10 -10 -10 -9 -8 -8 -7 -7 -6 -6 -6 -6 -5 -5 -5 -4 -4 -4 -3 -2 -1 --------- Run | Yrd Mat Min Exi Min Mat Gar Fac DSF Fac Ext Cet Arc Fac Upp War Pro Fac DSF Res Res Acc Total 12540 | 83 461 330 259 421 833 975 261 197 438 1239 387 229 518 790 755 460 50 241 1096 1086 1431 Wait 547 | 1 14 15 . 1 94 20 1 13 17 62 102 16 32 10 12 4 . 47 6 4 76 Move 10112 | 58 403 267 248 389 619 754 248 141 360 786 223 161 440 768 643 415 42 132 942 994 1079 Hop . | . . . . . . . . . . . . . . . . . . . . . . Pick Up 192 | 5 19 8 5 4 19 3 2 5 12 13 8 6 7 . 7 2 . 13 20 14 20 Fast Attach 111 | 7 . 1 . 2 3 3 1 3 6 14 3 . 5 . 13 . . 2 14 11 23 Attach 89 | . . 3 1 . 5 1 2 10 1 8 . 2 2 . . 3 2 1 12 3 33 Detach 13 | . . . . . . 1 1 1 . 2 . 1 . . . . . . . 1 6 Swap 185 | . 8 6 1 4 10 20 2 4 5 29 12 . 9 2 9 17 1 7 14 13 12 Drop 218 | . 7 7 4 6 20 8 4 1 12 26 17 5 8 1 22 . . 16 23 19 12 Fire 734 | 12 10 23 . 14 61 75 . 19 24 95 13 38 15 9 26 19 5 18 63 27 168 Melee 21 | . . . . . . 21 . . . . . . . . . . . . . . . Ram . | . . . . . . . . . . . . . . . . . . . . . . Kick 5 | . . . . . 2 . . . 1 . . . . . . . . . . . 2 Crush 3 | . . . . 1 . . . . . . . . . . . . . . 2 . . Escape Stasis 40 | . . . . . . 28 . . . 7 . . . . . . . 5 . . . Rewire 217 | . . . . . . 40 . . . 163 . . . . 14 . . . . . . Trap 1 | . . . . . . 1 . . . . . . . . . . . . . . . Miscellaneous 52 | . . . . . . . . . . 34 9 . . . 9 . . . . . . Route ------- -11/Scrapyard -10/Materials (discovered 3 exits: [*Mat x2] / [*Min]) -10/Mines (discovered 2 exits: [*Mat] / *Exi) -10/Exiles (discovered 2 exits: *Min x2) -9/Mines -8/Materials (discovered 2 exits: *Fac / Gar) -8/Garrison (discovered 4 exits: *Fac x3 / [*Mat]) -7/Factory (discovered 2 exits: *Fac / DSF) -7/DSF -6/Factory (discovered 2 exits: [*Low] / *Ext) -6/Extension (discovered 2 exits: *Fac / *Cet) -6/Cetus (discovered 2 exits: *Fac / [*Arc]) -6/Archives (discovered 2 exits: *Fac / [*Hub]) -5/Factory (discovered 2 exits: *Fac / *Upp) -5/Upper Caves -5/Warlord -4/Proximity Caves -4/Factory -4/DSF -3/Research (discovered 2 exits: *Res x2) -2/Research (discovered 2 exits: *Acc / *Tes) -1/Access History --------- Turn | Location | Event 29 | -11/Scrapyard | Discovered new exit (range 15) 139 | -11/Scrapyard | Entered Materials 316 | -10/Materials | Build established: Mutant 358 | -10/Materials | Discovered new exit (range 6) 678 | -10/Materials | Discovered new exit (range 16) 906 | -10/Materials | Discovered new exit (range 16) 1011 | -10/Materials | Entered Mines 1179 | -10/Mines | Discovered new exit (range 16) 1295 | -10/Mines | Assembled infested the area 1545 | -10/Mines | Deemed a non-threat by the Exiles lab entrance 1548 | -10/Mines | Discovered new exit (range 5) 1557 | -10/Mines | Entered Exiles 1558 | -10/Exiles | Identified exit to Mines 1627 | -10/Exiles | Met 8R-AWN 1661 | -10/Exiles | Met EX-HEX 1766 | -10/Exiles | Learned location of Zion (-7) 1771 | -10/Exiles | Met EX-DEC 1810 | -10/Exiles | Met EX-BIN 1843 | -10/Exiles | Aligned with FarCom system 1846 | -10/Exiles | Given EX-Vault access code 1903 | -10/Exiles | Opened EX-Vault 1919 | -10/Exiles | Found Deploy-a-Sentry 1923 | -10/Exiles | Found Deploy-a-Sentry 1926 | -10/Exiles | Found Deploy-a-Sentry 1980 | -10/Exiles | Warned to stay clear of 0b10 Research branches 2162 | -10/Exiles | Left Exiles lab with Deploy-a-Sentry 2162 | -10/Exiles | Entered Mines 2236 | -9/Mines | Learned Materials emergency access door positions 2432 | -9/Mines | Met a Derelict shopkeep closing up shop 2588 | -9/Mines | Discovered new exit (range 14) 2748 | -9/Mines | Found a hidden stash of uninstalled traps 2861 | -9/Mines | Learned 4 Materials zone layouts 3155 | -9/Mines | Entered Materials 3155 | -8/Materials | Evolved 4 slots: Propulsion x2, Utility x2 3367 | -8/Materials | Central database locked down 3473 | -8/Materials | Build established: Scavenger-Mutant 3939 | -8/Materials | Discovered new exit (range 10) 4521 | -8/Materials | Garrison activated, responded to threat 4550 | -8/Materials | Identified exit to Garrison 4550 | -8/Materials | Entered Garrison 4646 | -8/Garrison | Triggered checkpoint 4786 | -8/Garrison | Triggered checkpoint 4818 | -8/Garrison | Triggered checkpoint 4910 | -8/Garrison | Triggered checkpoint 4926 | -8/Garrison | Triggered checkpoint 5093 | -8/Garrison | Discovered new exit (range 8) 5145 | -8/Garrison | Garrison Relay disabled 5195 | -8/Garrison | Triggered checkpoint 5294 | -8/Garrison | Rescued a captive Derelict 5334 | -8/Garrison | Triggered checkpoint 5376 | -8/Garrison | Discovered new exit (range 5) 5574 | -8/Garrison | Triggered checkpoint 5653 | -8/Garrison | Garrison Relay disabled 5682 | -8/Garrison | Discovered new exit (range 14) 5956 | -8/Garrison | Attempted to access garrison exit controls, blocked by remote lockdown 6151 | -8/Garrison | Triggered checkpoint 6193 | -8/Garrison | Garrison Relay disabled 6251 | -8/Garrison | Discovered new exit (range 15) 6276 | -8/Garrison | Entered Factory 6276 | -7/Factory | Evolved 2 slots: Propulsion x1, Utility x1 6331 | -7/Factory | Discovered new exit (range 16) 6479 | -7/Factory | Identified exit to DSF 6607 | -7/Factory | Entered DSF 6607 | -7/DSF | Met a pair of Sappers preparing to destroy DSF 6622 | -7/DSF | Additional patrols routed to DSF 6685 | -7/DSF | Lost 8 parts (1p3n2u2w) 6870 | -7/DSF | Discovered new exit (range 15) 6936 | -7/DSF | Sterilization system engaged 6944 | -7/DSF | Lost 3 parts (2n1w) 6956 | -7/DSF | Ambient heat levels rising (+10) 6965 | -7/DSF | System corruption reached 10% 6971 | -7/DSF | Ambient heat levels rising (+10) 6980 | -7/DSF | Entered Factory 6980 | -6/Factory | Evolved 2 slots: Utility x2 7386 | -6/Factory | Discovered new exit (range 14) 7504 | -6/Factory | Discovered new exit (range 11) 7547 | -6/Factory | Build established: Scavenger-Skirmisher 7900 | -6/Factory | Cargo convoy interrupted 7904 | -6/Factory | Entered Extension 8128 | -6/Extension | Crushed by falling debris 8159 | -6/Extension | Lost 4 parts (1p2n1u) 8536 | -6/Extension | Rescued a captive Derelict 8536 | -6/Extension | Rescued a captive Derelict 8655 | -6/Extension | Build established: Scavenger-Mutant 8940 | -6/Extension | Crushed by falling debris 8941 | -6/Extension | Core integrity fell below 50% 8941 | -6/Extension | System corruption reached 10% 8960 | -6/Extension | Crushed by falling debris 8991 | -6/Extension | Lost 3 parts (2n1u) 9113 | -6/Extension | Rescued a captive Derelict 9153 | -6/Extension | Rescued a captive Derelict 9155 | -6/Extension | Rescued a captive Derelict 9279 | -6/Extension | Build established: Commander-Mutant 9397 | -6/Extension | Rescued A7 9408 | -6/Extension | Lost 3 allies 9542 | -6/Extension | Rescued a captive Derelict 9574 | -6/Extension | Discovered new exit (range 10) 9575 | -6/Extension | Discovered new exit (range 6) 9668 | -6/Extension | Entered Cetus 9668 | -6/Cetus | Accompanied by 15 allies (A7) 9673 | -6/Cetus | Acquired a Cetus Manufacturing Module code from A7 9684 | -6/Cetus | Spotted Cetus Guard 9684 | -6/Cetus | Spotted Cetus Guard 9688 | -6/Cetus | Spotted Cetus Guard 9690 | -6/Cetus | Spotted Cetus Guard 9707 | -6/Cetus | Allies destroyed Cetus Guard 9710 | -6/Cetus | Allies destroyed Cetus Guard 9712 | -6/Cetus | Allies destroyed Cetus Guard 9712 | -6/Cetus | Allies destroyed Cetus Guard 9739 | -6/Cetus | Lost 3 allies 9801 | -6/Cetus | Started Cetus Manufacturing Module 9826 | -6/Cetus | Manufactured an Enhanced Grunt 9836 | -6/Cetus | Escorted A7 to Cetus Mainframe 9851 | -6/Cetus | Manufactured an Enhanced Grunt 9876 | -6/Cetus | Manufactured an Enhanced Grunt 9901 | -6/Cetus | Manufactured an Enhanced Grunt 9926 | -6/Cetus | Manufactured an Enhanced Grunt 9958 | -6/Cetus | Discovered new exit (range 16) 9981 | -6/Cetus | Spotted Cetus Guard 9981 | -6/Cetus | Spotted Cetus Guard 9983 | -6/Cetus | Allies destroyed Cetus Guard 9984 | -6/Cetus | Spotted Cetus Guard 9986 | -6/Cetus | Spotted Cetus Guard 9993 | -6/Cetus | Allies destroyed Cetus Guard 9994 | -6/Cetus | Destroyed Cetus Guard 9997 | -6/Cetus | Destroyed Cetus Guard 10006 | -6/Cetus | Discovered new exit (range 16) 10012 | -6/Cetus | Met Revision 17 10138 | -6/Cetus | Entered Archives 10138 | -6/Archives | Accompanied by 17 allies (A7) 10143 | -6/Archives | Received a hacking code to weaken MAIN.C 10246 | -6/Archives | Discovered new exit (range 16) 10284 | -6/Archives | Discovered new exit (range 16) 10468 | -6/Archives | Entered Factory 10468 | -5/Factory | Accompanied by 14 allies 10468 | -5/Factory | Evolved 2 slots: Weapon x2 10777 | -5/Factory | Build established: Commander-Skirmisher 10836 | -5/Factory | Discovered new exit (range 15) 10855 | -5/Factory | Identified exit to Factory 10878 | -5/Factory | Lost 6 allies 10951 | -5/Factory | Discovered new exit (range 15) 11001 | -5/Factory | Identified exit to Upper Caves 11098 | -5/Factory | Entered Upper Caves 11098 | -5/Upper Caves | Accompanied by 4 allies 11105 | -5/Upper Caves | Met a Warlord Commander 11106 | -5/Upper Caves | Learned location of Warlord (-5) 11107 | -5/Upper Caves | Warlord Commander delivered Encrypted Comm Array 11132 | -5/Upper Caves | Build established: Scavenger-Skirmisher 11198 | -5/Upper Caves | A Derelict revealed a hidden shortcut to "reach the base" 11231 | -5/Upper Caves | Identified exit to Warlord 11539 | -5/Upper Caves | Learned Factory terminal intel 11781 | -5/Upper Caves | Learned Factory stockpile data 12017 | -5/Upper Caves | Entered Warlord 12017 | -5/Warlord | Accompanied by 3 allies 12306 | -5/Warlord | Met Warlord 12331 | -5/Warlord | Warlord's base attacked by MAIN.C 12339 | -5/Warlord | Found Prototype Processor 12339 | -5/Warlord | Identified Exp. Core Analyzer 12346 | -5/Warlord | Found Prototype Device 12346 | -5/Warlord | Identified Exp. Focal Shield 12639 | -5/Warlord | Build established: Scavenger-Gunner 12681 | -5/Warlord | Warlord forces counterattacked 12732 | -5/Warlord | Spotted Executioner 12740 | -5/Warlord | Spotted Executioner 12745 | -5/Warlord | Destroyed 5U-AYS(g) 12774 | -5/Warlord | Found Prototype Processor 12774 | -5/Warlord | Identified Exp. Targeting Computer 12783 | -5/Warlord | Spotted Striker 12819 | -5/Warlord | Lost 3 allies 12844 | -5/Warlord | Discovered new exit (range 14) 12844 | -5/Warlord | Spotted Executioner 12864 | -5/Warlord | DAS Turret deployed 12866 | -5/Warlord | P-80 Master assimilated allied CM-NKT(g) 12889 | -5/Warlord | Allies destroyed Executioner 12914 | -5/Warlord | Lost 9 allies 12917 | -5/Warlord | Identified exit to Proximity Caves 12918 | -5/Warlord | Entered Proximity Caves 13041 | -4/Proximity Caves | Attracted the attention of an 0b10 base 13131 | -4/Proximity Caves | Lost 3 parts (1p1n1w) 13147 | -4/Proximity Caves | Learned location of 1 exit from Research 13147 | -4/Proximity Caves | Learned Armory emergency access door positions 13147 | -4/Proximity Caves | Learned Extension security intel 13147 | -4/Proximity Caves | Learned Factory garrison access intel 13147 | -4/Proximity Caves | Learned Research garrison access intel 13372 | -4/Proximity Caves | Discovered exit to Factory (range 10) 13458 | -4/Proximity Caves | Entered Factory 13458 | -4/Factory | Evolved 2 slots: Utility x1, Weapon x1 13460 | -4/Factory | Loaded intel: 26 terminal locations 13461 | -4/Factory | Loaded intel: 4 garrison access locations 13515 | -4/Factory | Identified exit to DSF 13520 | -4/Factory | Entered DSF 13605 | -4/DSF | Additional patrols routed to DSF 13739 | -4/DSF | Discovered new exit (range 14) 13824 | -4/DSF | Build established: Scavenger-Tank 13841 | -4/DSF | Sterilization system engaged 13841 | -4/DSF | Entered Research 13841 | -3/Research | Evolved 2 slots: Propulsion x1, Utility x1 13842 | -3/Research | Identified exit to Research 13843 | -3/Research | Loaded intel: 3 garrison access locations 13948 | -3/Research | DAS Turret deployed 13986 | -3/Research | Lost 3 parts (2u1w) 14041 | -3/Research | Revision forces began assault on 0b10 14076 | -3/Research | Met up with Revision 17++ 14511 | -3/Research | Spotted B-86 Titan 14541 | -3/Research | Research terminal network offline 15266 | -3/Research | Spotted Striker 15375 | -3/Research | Spotted Striker 15380 | -3/Research | Destroyed Striker 15391 | -3/Research | Spotted Striker 15391 | -3/Research | Spotted Striker 15411 | -3/Research | Spotted Striker 15414 | -3/Research | Spotted Striker 15419 | -3/Research | Destroyed Striker 15424 | -3/Research | Destroyed Striker 15437 | -3/Research | Destroyed Striker 15444 | -3/Research | Destroyed Striker 15448 | -3/Research | Lost 6 allies 15465 | -3/Research | DAS Turret deployed 15524 | -3/Research | Lost 12 parts (1p3n4u4w) 15569 | -3/Research | Found Fusion Bomb Launcher 15707 | -3/Research | Discovered exit to Research (range 7) 15728 | -3/Research | Spotted Striker 15736 | -3/Research | Spotted Executioner 15736 | -3/Research | Entered another Research area 15736 | -2/Research | Warlord forces began assault on 0b10 15736 | -2/Research | Evolved 2 slots: Power x1, Utility x1 15761 | -2/Research | Distinguished unit "Smaug Mourners" dispatched to help 15761 | -2/Research | Distinguished unit "Railsplitters" dispatched to help 15766 | -2/Research | Lost 3 parts (1u2w) 15817 | -2/Research | Met up with Warlord 15846 | -2/Research | Research machine network offline 16071 | -2/Research | Discovered new exit (range 10) 16085 | -2/Research | Identified exit to Testing 16140 | -2/Research | Borebot progress halted 16147 | -2/Research | Spotted B-90 Cyclops 16162 | -2/Research | Destroyed B-90 Cyclops 16433 | -2/Research | Discovered new exit (range 16) 16588 | -2/Research | Borebot progress halted 16888 | -2/Research | Spotted Striker 16902 | -2/Research | Crushed by falling debris 16943 | -2/Research | Lost 6 allies 17238 | -2/Research | Given Cave Seal Controls access code 17429 | -2/Research | Entered Access 17429 | -1/Access | Evolved 2 slots: Utility x1, Weapon x1 17540 | -1/Access | Garrison activated, responded to threat 17720 | -1/Access | Build established: Scavenger-Executioner 17889 | -1/Access | Lost 5 allies 18157 | -1/Access | Lost 5 parts (1n2u2w) 18208 | -1/Access | Lost 5 parts (2n3w) 18535 | -1/Access | Found Gamma Bomb Array 18538 | -1/Access | Found Gamma Bomb Array 18758 | -1/Access | Destroyed 7 combat bots 18929 | -1/Access | First assault squad dispatched 19146 | -1/Access | Destroyed 9 combat bots 19418 | -1/Access | System corruption reached 10% 19634 | -1/Access | Build established: Hacker-Skirmisher 19727 | -1/Access | System corruption reached 30% 19757 | -1/Access | Self-destructed Last Messages --------------- 19750_ Penetrated by Slug. 19751_ P-80 Master resets R-10 Processor, system corruption cleaned. 19752_ The unstable cave ceiling collapses. 19753_ Penetrated by Slug. 19753_ Mic. Antimatter Reactor destroyed. 19753_ Penetrated by Slug. 19753_ Slug penetrates Earth. 19754_ Acquired 42 matter. 19755_ System corrupted: Heat flow error (+206). 19755_ P-80 Master resets H-88 Terminator, system corruption cleaned. 19756_ Penetrated by Slug. 19756_ Gamma Bomb Array destroyed. 19757_ Penetrated by Slug. 19757_ Critical hit (Destroy). 19757_ Hds. Centrium Leg destroyed. 19757_ Penetrated by Slug. 19757_ Hds. Centrium Leg destroyed. 19757_ Neutrino Core destroyed. Map ----- +----------------------------------------------------+ | ???????????????????????????????# # | | ????????????????????#?????????############## [ %% | | ????????????????#?????????????# | | ?????????????????#??????????#?# | | ????????????????????#?????#?#?# ? | | ????????????????????????#?#???# ?? | | ????????????????####?#????#?#?# ? ??? | | ????????????????#?#?????##??#?# ? ? ? | | ??????????????###?#?##?#??#?#?# ?? ?? ?? | | ??????????????????#??#?######## ############ | | ?????????????##????##?######### # | | ????????#????#??############### # | | ??????????#??##?##?# # + " | | ???????#???#####?### # # """" | | ?????????#?###?##### # """"" | | ???????#?########### h # """"" | | ???????####?######## # """" | | ????????############ = # " | | ????#??##?#######?## = h # | | ??????#?############ [% # | | ????################ % % # ! | | ????############# # % # | | ??#??########## ############ | | ?#??#?######## # % = ############ | | ?#?#### #% % #####?###?## | | #?##?## =*! @% # ##?######### | | ??###?# = !% = pp % #?#####?#### | | ##?#### !# !* # ##??###?##?? | | ?#?#### ## # R #?#??#####?# | | ##?#### "" # #????? ? | | #????## " ###### # #??????? | | ??#??## T" # + # #?#????? ?? | | #???### = """ # #### # ##?????????? | | ??##### "" # #### [# #????????? | | #?#?#?# # #### # #??????????? | | ?????## # ########## C #??????????? | | ??#?#########+###### #?###?###? #??????????? | | ?#?#?####? ? ??????????? | | ?###?##### ? ? ? ?????????????? | | ?#?##?#### ?????? ???????????????? | | ?##?????## ?? ???????????????????????? | | ##????#?## ???????????????????????? | | ####??#### ???????????????????????? | | ?#???##### ??????????????????????? | | ??#?##??##################???????????????????????? | | ??##???#??????#??## ?? ??????????????????????????? | | ???????#?###?#?##????????????????????????????????? | | ????????????????????? ??? ???????????????????????? | | ???????????#?#??#????????????????????????????????? | | ?????????????????????????????????????????????????? | +----------------------------------------------------+ Best States ------------- Heat Dissipation 109 Energy Generation 43 Energy Capacity 590 Matter Stores 300 Matter Capacity 550 Sight Range 16 Robot Scan Range 16 Terrain Scan Range 20 Terrain Scan Density 210 Jamming Range 14 Base Temperature (-) 100 Corruption Block 12 Armor Coverage 900 Resistance: TH 30 Weapon Shielding 66 Point Defense Rating 320 Phase Shifting 5 Evasion (%) 70 Targeting Accuracy 12 Melee Accuracy 5 Core Analysis 11 Armor Integrity Analysis 30 Recoil Reduction 6 Offensive Hacking 28 Defensive Hacking 12 Item Schematics ----------------- Hcp. Storage Unit | -10/Materials | Hacked Plasma Cutter | -8/Materials | Scanalyzed Robot Schematics ------------------ None Fabricated ------------ Nothing Repaired ---------- Nothing Studied --------- Aluminum Leg | -8/Materials | Hacked Hyp. Coil Gun | -5/Factory | Hacked Flexi-carbon Leg | -5/Factory | Hacked Alien Tech Used ----------------- None Achievements -------------- No Explosion For You Challenges ------------ None Game ------ Seed RainbowKineticNetwork Manual? 0 Play Time 02:44:57 Cumulative 111.0 hours Start 2026.03.02 @ 18:56:12 End 2026.03.02 @ 22:47:28 Sessions 9 Manual Loads 0 Difficulty Rogue Special Mode None Game No. 135 Rogue 60 Adventurer 75 Explorer 0 Win Type - Total 4 Types 4/0/0/0/0/0/0/0/0/0 Lore% 52 Gallery% 51 Achievement% 41 Wizard Run 0 Options --------- Layout 2 ASCII 0 Keyboard 0 Movement Numpad Keybinds 0 Fullscreen 2 Font 24/Smallcaps Map View 50x44 Zoom Use 0% Tactical HUD 1 Map Filters NONE Filters NONE Steam 1 RUN: a438adfe-8c55-4dcc-939b-74b496ef33be